fUST/lending_fUST_20240921
["ID","MTS","AMOUNT","RATE_DAILY","PERIOD"]
[338730501,1726901442776,-500.0,0.00014588,2]
[338730503,1726901442788,-193.37211427,0.00014588,2]
[338735194,1726901513582,600.0,9.7e-05,2]
[338735195,1726901515161,600.0,0.0001107,2]
[338735196,1726901516735,600.0,0.0001244,2]
[338735197,1726901518331,600.0,0.0001381,2]
[338735202,1726901755228,186.393649,0.00011781,2]
[338735203,1726901826946,500.0,9.7e-05,2]
[338735204,1726901828536,500.0,0.0001107,2]
[338735205,1726901830130,500.0,0.0001244,2]
[338735206,1726901831737,500.0,0.0001381,2]
[338735207,1726902003401,500.0,0.0001,2]
[338735210,1726902092835,3944.83,0.0001404,2]
[338735212,1726902146749,1000.0,0.00014,4]
[338735218,1726902301494,177.073966,0.00011781,2]
[338735219,1726902301912,10000.0,0.00014,7]
[338735248,1726902353795,10000.0,0.00014,4]
[338735324,1726902638110,-300.0,0.00014299,2]
[338735326,1726902638121,-500.0,0.000143,2]
[338735328,1726902638131,-972.07246593,0.000143,2]
[338735330,1726902638144,-915.8559745,0.000143,2]
[338735333,1726902638156,-981.19493176,0.000143,2]
[338735523,1726902640012,-2130.87662781,0.000143,2]
[338735525,1726902640023,-894.76,0.000143,2]
[338735527,1726902640032,-500.0,0.000143,2]
[338735529,1726902640041,-16706.89,0.000143,2]
[338735531,1726902640051,-527.74,0.000143,2]
[338735533,1726902640061,-150.0,0.000143,2]
[338735535,1726902640071,-2394.64,0.000143,2]
[338735537,1726902640080,-500.0,0.000143,2]
[338735539,1726902640089,-37918.5613837,0.00014301,2]
[338735541,1726902640098,-1573.7815644,0.00014301,2]
[338735543,1726902640107,-954.22,0.00014301,2]
[338735545,1726902640116,-500.0,0.00014301,2]
[338735547,1726902640126,-500.0,0.00014301,2]
[338735549,1726902640136,-500.0,0.00014301,2]
[338735551,1726902640145,-500.0,0.00014301,2]
[338735553,1726902640154,-500.0,0.00014301,2]
[338735555,1726902640163,-500.0,0.00014301,2]
[338735557,1726902640173,-500.0,0.00014301,2]
[338735559,1726902640182,-500.0,0.00014301,2]
[338735561,1726902640191,-500.0,0.00014301,2]
[338735563,1726902640201,-500.0,0.00014301,2]
[338735565,1726902640211,-500.0,0.00014301,2]
[338735567,1726902640220,-500.0,0.00014301,2]
[338735569,1726902640229,-500.0,0.00014301,2]
[338735571,1726902640239,-500.0,0.00014301,2]
[338735573,1726902640248,-910.96,0.00014301,2]
[338735575,1726902640257,-500.0,0.00014301,2]
[338735577,1726902640266,-500.0,0.00014301,2]
[338735579,1726902640276,-548.10149986,0.00014302,2]
[338735581,1726902640286,-500.0,0.00014302,2]
[338735583,1726902640295,-192.44832327,0.00014302,2]
[338735585,1726902640304,-608.09068544,0.00014302,2]
[338735587,1726902640314,-653.56,0.00014302,2]
[338735589,1726902640323,-607.69056196,0.00014302,2]
[338735591,1726902640332,-500.0,0.00014302,2]
[338735593,1726902640342,-500.0,0.00014302,2]
[338735595,1726902640355,-500.0,0.00014302,2]
[338735597,1726902640364,-500.0,0.00014302,2]
[338735599,1726902640374,-500.0,0.00014302,2]
[338735601,1726902640383,-506.6203096,0.00014302,2]
[338735603,1726902640393,-503.7,0.00014302,2]
[338735605,1726902640402,-500.0,0.00014302,2]
[338735607,1726902640411,-500.0,0.00014302,2]
[338735609,1726902640420,-500.0,0.00014302,2]
[338735611,1726902640430,-500.0,0.00014302,2]
[338735613,1726902640439,-500.0,0.00014302,2]
[338735615,1726902640449,-500.0,0.00014302,2]
[338735617,1726902640459,-460.35283347,0.00014302,2]
[338735619,1726902640469,-500.0,0.00014302,2]
[338735621,1726902640480,-500.0,0.00014302,2]
[338735623,1726902640491,-500.0,0.00014302,2]
[338735626,1726902640501,-500.0,0.00014302,2]
[338735628,1726902640512,-500.0,0.00014302,2]
[338735630,1726902640522,-500.0,0.00014302,2]
[338735632,1726902640532,-500.0,0.00014302,2]
[338735634,1726902640542,-500.0,0.00014302,2]
[338735636,1726902640552,-500.0,0.00014302,2]
[338735638,1726902640562,-500.0,0.00014302,2]
[338735640,1726902640572,-500.0,0.00014302,2]
[338735642,1726902640581,-500.0,0.00014302,2]
[338735644,1726902640591,-500.0,0.00014302,2]
[338735646,1726902640600,-500.0,0.00014302,2]
[338735648,1726902640610,-500.0,0.00014302,2]
[338735650,1726902640619,-500.0,0.00014302,2]
[338735652,1726902640628,-500.0,0.00014302,2]
[338735654,1726902640638,-500.0,0.00014302,2]
[338735656,1726902640647,-500.0,0.00014302,2]
[338735658,1726902640656,-500.0,0.00014302,2]
[338735660,1726902640666,-500.0,0.00014302,2]
[338735662,1726902640676,-500.0,0.00014302,2]
[338735664,1726902640685,-500.0,0.00014302,2]
[338735666,1726902640694,-540.56,0.00014302,2]
[338735668,1726902640703,-500.0,0.00014302,2]
[338735670,1726902640713,-500.0,0.00014302,2]
[338735672,1726902640725,-500.0,0.00014302,2]
[338735674,1726902640735,-500.0,0.00014302,2]
[338735676,1726902640745,-500.0,0.00014302,2]
[338735678,1726902640755,-500.0,0.00014302,2]
[338735680,1726902640766,-500.0,0.00014302,2]
[338735682,1726902640776,-500.0,0.00014302,2]
[338735684,1726902640787,-500.0,0.00014302,2]
[338735687,1726902640800,-500.0,0.00014302,2]
[338735689,1726902640812,-500.0,0.00014302,2]
[338735691,1726902640822,-500.0,0.00014302,2]
[338735693,1726902640832,-648.86184512,0.00014302,2]
[338735695,1726902640842,-500.0,0.00014302,2]
[338735697,1726902640852,-2098.32,0.00014302,2]
[338735699,1726902640861,-520.0,0.00014302,2]
[338735701,1726902640870,-500.0,0.00014302,2]
[338735703,1726902640880,-500.0,0.00014302,2]
[338735705,1726902640890,-501.9642815,0.00014302,2]
[338735707,1726902640899,-500.0,0.00014302,2]
[338735709,1726902640908,-500.0,0.00014302,2]
[338735711,1726902640917,-500.0,0.00014302,2]
[338735713,1726902640926,-500.0,0.00014302,2]
[338735715,1726902640936,-503.80585493,0.00014302,2]
[338735717,1726902640946,-500.0,0.00014302,2]
[338735719,1726902640956,-500.0,0.00014302,2]
[338735721,1726902640965,-251.60187635,0.00014302,2]
[338735723,1726902640974,-500.0,0.00014302,2]
[338735725,1726902640983,-500.0,0.00014302,2]
[338735727,1726902640992,-681.06,0.00014302,2]
[338735729,1726902641001,-500.0,0.00014302,2]
[338735731,1726902641010,-500.0,0.00014302,2]
[338735733,1726902641019,-500.0,0.00014302,2]
[338735735,1726902641029,-500.0,0.00014302,2]
[338735737,1726902641039,-502.02661187,0.00014302,2]
[338735740,1726902641050,-500.0,0.00014302,2]
[338735741,1726902641059,-500.0,0.00014302,2]
[338735743,1726902641068,-500.0,0.00014302,2]
[338735745,1726902641078,-500.0,0.00014302,2]
[338735747,1726902641087,-500.0,0.00014302,2]
[338735749,1726902641097,-758.83,0.00014302,2]
[338735751,1726902641106,-500.0,0.00014302,2]
[338735753,1726902641115,-500.0,0.00014302,2]
[338735755,1726902641124,-1084.14,0.00014302,2]
[338735757,1726902641134,-500.0,0.00014302,2]
[338735759,1726902641143,-500.0,0.00014302,2]
[338735761,1726902641153,-260.82529819,0.00014302,2]
[338735763,1726902641162,-200.0,0.00014302,2]
[338735765,1726902641172,-500.0,0.00014302,2]
[338735767,1726902641181,-500.0,0.00014302,2]
[338735769,1726902641190,-500.0,0.00014302,2]
[338735771,1726902641199,-503.69,0.00014303,2]
[338735773,1726902641210,-500.0,0.00014311,2]
[338735775,1726902641219,-500.0,0.00014311,2]
[338735777,1726902641228,-500.0,0.00014311,2]
[338735779,1726902641237,-500.0,0.00014311,2]
[338735781,1726902641246,-500.0,0.00014311,2]
[338735783,1726902641256,-500.0,0.00014311,2]
[338735785,1726902641266,-538.68,0.00014311,2]
[338735787,1726902641275,-500.0,0.00014311,2]
[338735789,1726902641284,-500.0,0.00014311,2]
[338735791,1726902641293,-552.36,0.00014311,2]
[338735793,1726902641303,-500.0,0.00014311,2]
[338735795,1726902641313,-759.43,0.00014311,2]
[338735797,1726902641323,-545.48,0.00014311,2]
[338735799,1726902641333,-500.0,0.00014311,2]
[338735801,1726902641343,-547.58,0.00014311,2]
[338735803,1726902641353,-500.0,0.00014311,2]
[338735805,1726902641362,-500.0,0.00014311,2]
[338735807,1726902641372,-500.0,0.00014311,2]
[338735809,1726902641381,-500.0,0.00014311,2]
[338735811,1726902641390,-500.0,0.00014311,2]
[338735813,1726902641399,-500.0,0.00014311,2]
[338735815,1726902641408,-500.0,0.00014311,2]
[338735817,1726902641417,-500.0,0.00014311,2]
[338735819,1726902641426,-278.10359083,0.00014311,2]
[338735821,1726902641435,-500.0,0.00014311,2]
[338735823,1726902641444,-501.61,0.00014311,2]
[338735825,1726902641454,-500.0,0.00014311,2]
[338735827,1726902641463,-464.43897903,0.00014311,2]
[338735829,1726902641472,-500.0,0.00014311,2]
[338735830,1726902641482,-500.0,0.00014311,2]
[338735832,1726902641491,-500.0,0.00014311,2]
[338735834,1726902641500,-500.0,0.00014311,2]
[338735836,1726902641510,-500.0,0.00014311,2]
[338735838,1726902641519,-500.0,0.00014311,2]
[338735840,1726902641528,-500.0,0.00014311,2]
[338735842,1726902641539,-500.0,0.00014311,2]
[338735844,1726902641549,-500.0,0.00014311,2]
[338735846,1726902641558,-500.0,0.00014311,2]
[338735848,1726902641567,-500.0,0.00014311,2]
[338735850,1726902641577,-500.0,0.00014311,2]
[338735852,1726902641586,-500.0,0.00014311,2]
[338735854,1726902641596,-7140.47594759,0.00014346,2]
[338735856,1726902641606,-423.66723608,0.0001438,2]
[338735858,1726902641615,-37918.5613837,0.0001446,2]
[338735860,1726902641624,-1573.7815644,0.0001446,2]
[338735862,1726902641634,-6089.72504347,0.0001448,2]
[338735864,1726902641645,-599.82,0.000145,2]
[338735866,1726902641655,-423.66723604,0.00014539,2]
[338735868,1726902641665,-37918.5613837,0.00014556,2]
[338735870,1726902641674,-1573.7815644,0.00014556,2]
[338735872,1726902641683,-23707.90031051,0.00014566,2]
[338736938,1726902960055,193.220275,0.00011781,2]
[338736939,1726903050180,2029.006978,0.00013699,2]
[338736940,1726903073761,166.047653,0.00013399,2]
[338736941,1726903073985,166.047653,0.00013463,2]
[338736942,1726903074216,166.047653,0.00013526,2]
[338736943,1726903074470,166.047653,0.0001359,2]
[338736944,1726903074737,166.047653,0.00013653,2]
[338736945,1726903075099,166.047653,0.00013717,2]
[338736946,1726903075313,166.047653,0.0001378,2]
[338736947,1726903075538,166.047653,0.00013844,2]
[338736948,1726903075749,166.047653,0.00013907,2]
[338736949,1726903075973,166.047653,0.00013971,2]
[338736950,1726903076218,166.047653,0.00014034,2]
[338736953,1726903491280,183.559261,0.00011781,2]
[338736955,1726903617727,1352.671318,0.00013699,2]
[338736957,1726903711535,500.0,0.0001404,2]
[338736962,1726903823248,166.047653,0.00013347,2]
[338737013,1726903832281,-192.9383503,0.00014102,2]
[338737015,1726903832291,-1408.57553173,0.00014188,2]
[338737017,1726903832301,-1000.0,0.00014198,2]
[338737019,1726903832311,-423.66723608,0.00014202,2]
[338737021,1726903832321,-300.0,0.00014279,2]
[338737022,1726903832330,-300.0,0.00014279,2]
[338737024,1726903832340,-2586.12509635,0.0001428,2]
[338737492,1726903838409,-3503.59994712,0.0001428,2]
[338737493,1726903838419,-4294.30681556,0.0001428,2]
[338737494,1726903838429,-500.0,0.00014287,2]
[338737495,1726903838439,-552.31155564,0.00014288,2]
[338737496,1726903838451,-5049.6434236,0.00014288,2]
[338737497,1726903838554,-8587.27219,0.00014288,2]
[338737498,1726903838566,-34271.11726866,0.00014288,2]
[338737499,1726903838576,-10316.0971946,0.00014288,2]
[338737500,1726903838587,-48460.3444379,0.0001429,2]
[338737501,1726903838596,-10316.0971946,0.0001429,2]
[338737502,1726903838610,-500.0,0.00014291,2]
[338737503,1726903838619,-933.66,0.00014291,2]
[338737504,1726903838629,-500.0,0.00014291,2]
[338737505,1726903838638,-500.0,0.00014291,2]
[338737506,1726903838647,-550.69,0.00014291,2]
[338737507,1726903838657,-17433.27,0.00014291,2]
[338737508,1726903838666,-2498.75,0.00014291,2]
[338737509,1726903838675,-500.0,0.00014291,2]
[338737510,1726903838685,-500.0,0.00014297,2]
[338737511,1726903838694,-541.98605961,0.00014297,2]
[338737512,1726903838706,-952.32,0.00014297,2]
[338737513,1726903838719,-500.0,0.00014297,2]
[338737514,1726903838729,-500.0,0.00014297,2]
[338737515,1726903838738,-170.81220532,0.00014297,2]
[338737516,1726903838747,-500.0,0.00014297,2]
[338737517,1726903838756,-540.44,0.00014297,2]
[338737518,1726903838767,-500.0,0.00014297,2]
[338737519,1726903838777,-500.0,0.00014297,2]
[338737520,1726903838788,-500.0,0.00014297,2]
[338737521,1726903838799,-500.0,0.00014297,2]
[338737522,1726903838809,-500.0,0.00014297,2]
[338737523,1726903838818,-500.0,0.00014297,2]
[338737524,1726903838827,-500.0,0.00014297,2]
[338737525,1726903838838,-500.0,0.00014297,2]
[338737526,1726903838847,-500.0,0.00014297,2]
[338737527,1726903838856,-500.0,0.00014297,2]
[338737528,1726903838866,-2098.32,0.00014297,2]
[338737529,1726903838875,-500.0,0.00014297,2]
[338737530,1726903838884,-500.0,0.00014297,2]
[338737531,1726903838895,-500.0,0.00014297,2]
[338737532,1726903838905,-500.0,0.00014297,2]
[338737533,1726903838923,-500.0,0.00014297,2]
[338737534,1726903838933,-251.60187635,0.00014297,2]
[338737535,1726903838944,-500.0,0.00014297,2]
[338737536,1726903838953,-500.0,0.00014297,2]
[338737537,1726903838963,-500.0,0.00014297,2]
[338737538,1726903838972,-500.0,0.00014297,2]
[338737539,1726903838982,-500.0,0.00014297,2]
[338737540,1726903838993,-500.0,0.00014297,2]
[338737541,1726903839003,-500.0,0.00014297,2]
[338737542,1726903839012,-500.0,0.00014297,2]
[338737543,1726903839022,-500.0,0.00014297,2]
[338737544,1726903839033,-500.0,0.00014297,2]
[338737545,1726903839042,-500.0,0.00014297,2]
[338737546,1726903839052,-500.0,0.00014297,2]
[338737547,1726903839062,-500.0,0.00014297,2]
[338737548,1726903839072,-910.96,0.00014297,2]
[338737549,1726903839081,-758.83,0.00014297,2]
[338737550,1726903839090,-500.0,0.00014297,2]
[338737551,1726903839100,-1084.14,0.00014297,2]
[338737552,1726903839111,-500.0,0.00014297,2]
[338737553,1726903839120,-500.0,0.00014298,2]
[338737554,1726903839129,-500.0,0.00014298,2]
[338737555,1726903839138,-500.0,0.00014298,2]
[338737556,1726903839147,-626.33,0.00014298,2]
[338737557,1726903839156,-500.0,0.00014298,2]
[338737558,1726903839166,-500.0,0.00014298,2]
[338737559,1726903839175,-500.0,0.00014298,2]
[338737560,1726903839185,-500.0,0.00014298,2]
[338737561,1726903839194,-500.0,0.00014298,2]
[338737562,1726903839204,-500.0,0.00014298,2]
[338737563,1726903839213,-160.15423691,0.00014298,2]
[338737564,1726903839223,-503.62,0.00014298,2]
[338737565,1726903839232,-500.0,0.00014298,2]
[338737566,1726903839242,-500.0,0.00014298,2]
[338737567,1726903839251,-500.0,0.00014298,2]
[338737568,1726903839261,-500.0,0.00014298,2]
[338737569,1726903839271,-503.37632516,0.00014298,2]
[338737570,1726903839280,-500.0,0.00014298,2]
[338737571,1726903839290,-500.0,0.00014298,2]
[338737572,1726903839299,-248.73159553,0.00014298,2]
[338737573,1726903839308,-500.0,0.00014298,2]
[338737574,1726903839318,-500.0,0.00014298,2]
[338737575,1726903839329,-500.92807811,0.00014298,2]
[338737576,1726903839340,-500.52878967,0.00014298,2]
[338737577,1726903839349,-500.0,0.00014298,2]
[338737578,1726903839361,-500.0,0.00014298,2]
[338737579,1726903839371,-500.0,0.00014298,2]
[338737580,1726903839382,-500.0,0.00014298,2]
[338737581,1726903839391,-500.0,0.00014298,2]
[338737582,1726903839401,-500.0,0.00014298,2]
[338737583,1726903839411,-500.0,0.00014298,2]
[338737584,1726903839420,-500.0,0.00014298,2]
[338737585,1726903839430,-230.78220311,0.00014298,2]
[338737586,1726903839439,-500.0,0.00014298,2]
[338737587,1726903839448,-500.0,0.00014298,2]
[338737588,1726903839458,-500.0,0.00014298,2]
[338737589,1726903839467,-500.0,0.00014298,2]
[338737590,1726903839477,-500.0,0.00014298,2]
[338737591,1726903839486,-500.0,0.00014298,2]
[338737592,1726903839495,-462.10035752,0.00014298,2]
[338737593,1726903839505,-500.0,0.00014298,2]
[338737595,1726903839514,-500.0,0.00014298,2]
[338737597,1726903839524,-500.0,0.00014298,2]
[338737599,1726903839533,-500.0,0.00014298,2]
[338737601,1726903839543,-500.0,0.00014298,2]
[338737602,1726903839552,-337.17846631,0.00014298,2]
[338737604,1726903839561,-500.0,0.00014298,2]
[338737606,1726903839571,-500.0,0.00014298,2]
[338737607,1726903839580,-500.0,0.00014298,2]
[338737610,1726903839590,-500.0,0.00014298,2]
[338737611,1726903839602,-400.4723907,0.00014298,2]
[338737614,1726903839612,-500.0,0.00014298,2]
[338737615,1726903839621,-501.28438188,0.00014298,2]
[338737616,1726903839630,-500.0,0.00014298,2]
[338737618,1726903839640,-500.0,0.00014298,2]
[338737619,1726903839649,-470.22010164,0.00014298,2]
[338737620,1726903839659,-500.0,0.00014298,2]
[338737621,1726903839669,-501.26830144,0.00014298,2]
[338737622,1726903839678,-500.0,0.00014298,2]
[338737623,1726903839688,-500.0,0.00014298,2]
[338737624,1726903839698,-500.0,0.00014298,2]
[338737625,1726903839707,-500.0,0.00014298,2]
[338737626,1726903839717,-500.0,0.00014298,2]
[338737627,1726903839726,-500.0,0.00014298,2]
[338737628,1726903839735,-357.94168986,0.00014298,2]
[338737629,1726903839745,-500.0,0.00014298,2]
[338737630,1726903839754,-681.06,0.00014298,2]
[338737631,1726903839763,-503.80585493,0.00014298,2]
[338737633,1726903839772,-500.0,0.00014298,2]
[338737634,1726903839782,-500.0,0.00014298,2]
[338737636,1726903839791,-502.02661187,0.00014298,2]
[338737637,1726903839800,-500.0,0.00014298,2]
[338737638,1726903839809,-500.0,0.00014298,2]
[338737640,1726903839819,-500.0,0.00014298,2]
[338737642,1726903839828,-500.0,0.00014298,2]
[338737644,1726903839837,-500.0,0.00014298,2]
[338737645,1726903839846,-260.82529819,0.00014298,2]
[338737647,1726903839855,-500.0,0.00014298,2]
[338737649,1726903839864,-500.0,0.00014298,2]
[338737650,1726903839874,-500.0,0.00014298,2]
[338737653,1726903839883,-500.0,0.00014298,2]
[338737655,1726903839892,-500.0,0.00014298,2]
[338737657,1726903839902,-500.0,0.00014298,2]
[338737658,1726903839912,-500.0,0.00014298,2]
[338737659,1726903839922,-500.0,0.00014298,2]
[338737660,1726903839931,-576.22,0.00014298,2]
[338737661,1726903839940,-589.89,0.00014298,2]
[338737662,1726903839950,-430.72399219,0.00014298,2]
[338737663,1726903839960,-500.0,0.00014298,2]
[338737664,1726903839969,-793.94,0.00014298,2]
[338737665,1726903839978,-500.0,0.00014298,2]
[338737667,1726903839988,-571.24,0.00014298,2]
[338737668,1726903839998,-561.96,0.00014298,2]
[338737670,1726903840007,-500.0,0.00014298,2]
[338737672,1726903840016,-500.0,0.00014298,2]
[338737674,1726903840026,-500.0,0.00014298,2]
[338737676,1726903840036,-500.0,0.00014298,2]
[338737678,1726903840045,-500.0,0.00014298,2]
[338737680,1726903840054,-500.0,0.00014298,2]
[338737682,1726903840063,-500.0,0.00014298,2]
[338737683,1726903840072,-500.0,0.00014298,2]
[338737684,1726903840082,-500.0,0.00014298,2]
[338737685,1726903840091,-500.0,0.00014298,2]
[338737686,1726903840100,-500.0,0.00014298,2]
[338737687,1726903840110,-500.0,0.00014298,2]
[338737688,1726903840119,-500.0,0.00014298,2]
[338737689,1726903840128,-501.61,0.00014298,2]
[338737690,1726903840137,-500.0,0.00014298,2]
[338737691,1726903840146,-500.0,0.00014298,2]
[338737692,1726903840155,-514.06724973,0.00014298,2]
[338737693,1726903840166,-500.0,0.00014298,2]
[338737694,1726903840175,-500.0,0.00014298,2]
[338737696,1726903840184,-500.0,0.00014298,2]
[338737698,1726903840194,-500.0,0.00014298,2]
[338737700,1726903840203,-278.10359083,0.00014298,2]
[338737702,1726903840212,-500.0,0.00014298,2]
[338737704,1726903840221,-500.0,0.00014298,2]
[338737706,1726903840231,-464.43897903,0.00014298,2]
[338737707,1726903840241,-500.0,0.00014298,2]
[338737709,1726903840250,-500.0,0.00014298,2]
[338737711,1726903840259,-500.0,0.00014298,2]
[338737713,1726903840268,-1666.69,0.00014298,2]
[338737715,1726903840278,-500.0,0.00014298,2]
[338737717,1726903840288,-500.0,0.00014298,2]
[338737719,1726903840297,-500.0,0.000143,2]
[338737721,1726903840307,-500.0,0.000143,2]
[338737723,1726903840316,-200.0,0.000143,2]
[338737725,1726903840325,-500.0,0.000143,2]
[338737727,1726903840334,-500.0,0.000143,2]
[338737729,1726903840344,-503.69,0.000143,2]
[338737731,1726903840354,-88611.14036414,0.000143,2]
[338737733,1726903840363,-285.95029188,0.00014302,2]
[338737735,1726903840373,-500.0,0.00014302,2]
[338737737,1726903840382,-500.0,0.00014302,2]
[338737739,1726903840391,-500.0,0.00014302,2]
[338737741,1726903840401,-4065.72,0.0001435,2]
[338737743,1726903840410,-423.66723604,0.00014369,2]
[338737744,1726903840420,-1352.671318,0.00014384,2]
[338737746,1726903840429,-26260.083959,0.00014458,2]
[338737747,1726903840438,-840.37181166,0.00014472,2]
[338737749,1726903840448,-153.0,0.000145,2]
[338737751,1726903840458,-153.0,0.000145,2]
[338737753,1726903840467,-153.0,0.000145,2]
[338737754,1726903840477,-417.7733172,0.000145,2]
[338737755,1726903840486,-208.8866586,0.000145,2]
[338737756,1726903840495,-455.1768148,0.000145,2]
[338737757,1726903840504,-153.0,0.000145,2]
[338737758,1726903840513,-179.8053002,0.000145,2]
[338737759,1726903840522,-208.8866586,0.000145,2]
[338737760,1726903840532,-208.8866586,0.000145,2]
[338737761,1726903840542,-153.0,0.000145,2]
[338737763,1726903840551,-153.0,0.000145,2]
[338737765,1726903840562,-208.8866586,0.000145,2]
[338737767,1726903840573,-153.0,0.000145,2]
[338737769,1726903840584,-153.0,0.000145,2]
[338737771,1726903840593,-153.0,0.000145,2]
[338737773,1726903840608,-153.0,0.000145,2]
[338737775,1726903840617,-208.8377925,0.000145,2]
[338737777,1726903840626,-153.0,0.000145,2]
[338737779,1726903840635,-153.0,0.000145,2]
[338737781,1726903840646,-153.0,0.000145,2]
[338737783,1726903840655,-306.0,0.000145,2]
[338737785,1726903840665,-153.0,0.000145,2]
[338737787,1726903840674,-307.1331483,0.000145,2]
[338737788,1726903840684,-306.0,0.000145,2]
[338737790,1726903840693,-153.0,0.000145,2]
[338737792,1726903840702,-411.7313822,0.000145,2]
[338737794,1726903840712,-153.0,0.000145,2]
[338737796,1726903840723,-153.0,0.000145,2]
[338737797,1726903840733,-153.0,0.000145,2]
[338737798,1726903840742,-309.6165185,0.000145,2]
[338737799,1726903840751,-153.0,0.000145,2]
[338737800,1726903840760,-153.0,0.000145,2]
[338737801,1726903840770,-306.0,0.000145,2]
[338737802,1726903840780,-153.0,0.000145,2]
[338737803,1726903840791,-306.0,0.000145,2]
[338737804,1726903840801,-153.0,0.000145,2]
[338737805,1726903840811,-153.0,0.000145,2]
[338737806,1726903840820,-6804.29742007,0.00014513,2]
[338737807,1726903840829,-423.66723604,0.00014536,2]
[338737808,1726903840839,-618.36678515,0.0001455,2]
[338737809,1726903840848,-500.0,0.0001455,2]
[338737811,1726903840858,-500.0,0.0001455,2]
[338737812,1726903840868,-500.0,0.0001455,2]
[338737813,1726903840879,-368.3802166,0.0001455,2]
[338737814,1726903840888,-500.0,0.0001455,2]
[338737815,1726903840897,-500.0,0.0001455,2]
[338737816,1726903840907,-500.0,0.0001455,2]
[338737817,1726903840917,-500.0,0.0001455,2]
[338737818,1726903840926,-500.0,0.0001455,2]
[338737819,1726903840935,-425.63159022,0.0001455,2]
[338737820,1726903840945,-500.0,0.0001455,2]
[338737821,1726903840956,-500.0,0.0001455,2]
[338737822,1726903840965,-500.0,0.0001455,2]
[338737823,1726903840975,-500.0,0.0001455,2]
[338737824,1726903840985,-48460.3444379,0.00014551,2]
[338737825,1726903840995,-10316.0971946,0.00014551,2]
[338737826,1726903841005,-48460.3444379,0.00014554,2]
[338737827,1726903841015,-10316.0971946,0.00014554,2]
[338737828,1726903841027,-541.023795,0.00014554,2]
[338737829,1726903841038,-541.023795,0.00014554,2]
[338737830,1726903841050,-179.55963272,0.0001456,2]
[338737831,1726903841059,-500.0,0.0001456,2]
[338737832,1726903841068,-500.0,0.0001456,2]
[338737833,1726903841078,-500.0,0.0001456,2]
[338737834,1726903841089,-444.6142648,0.0001456,2]
[338737835,1726903841100,-500.0,0.0001456,2]
[338737836,1726903841111,-500.0,0.0001456,2]
[338737837,1726903841123,-571.47117515,0.0001456,2]
[338737838,1726903841132,-500.0,0.0001456,2]
[338737839,1726903841141,-500.0,0.0001456,2]
[338737840,1726903841151,-500.0,0.0001456,2]
[338737841,1726903841161,-500.0,0.0001456,2]
[338737842,1726903841170,-500.0,0.0001456,2]
[338737843,1726903841179,-500.0,0.0001456,2]
[338737844,1726903841188,-571.11228861,0.0001456,2]
[338737845,1726903841198,-500.0,0.0001456,2]
[338737846,1726903841207,-500.0,0.0001456,2]